bitfinex/quotes_ETHUSD_20250523
["timestamp","ask_amount","ask_price","bid_price","bid_amount"]
[1748011296748,3.87942739,2577.7,2577.6,32.875]
[1748011296922,3.87942739,2577.7,2577.6,47.04073174]
[1748011297344,3.87942739,2577.7,2577.6,19.28273174]
[1748011297587,3.87942739,2577.7,2577.6,44.502]
[1748011297930,3.87942739,2577.7,2577.6,16.746]
[1748011298131,3.87942739,2577.7,2577.6,44.501]
[1748011298892,3.87933449,2577.8,2577.6,44.501]
[1748011299179,3.87934454,2577.8,2577.6,44.501]
[1748011299334,3.87937018,2577.8,2577.6,44.501]
[1748011299528,3.87942739,2577.7,2577.6,32.873]
[1748011299828,3.87942739,2577.7,2577.6,44.501]
[1748011300342,3.87865428,2578.3,2577.6,44.501]
[1748011300530,3.87942739,2577.7,2577.6,44.501]
[1748011300730,3.87942739,2577.7,2577.6,32.872]
[1748011303246,4.65102739,2577.7,2577.6,32.872]
[1748011304391,4.7000306,2577.1,2577.0,11.627]
[1748011304687,3.88101196,2576.7,2576.6,11.627]
[1748011304844,3.88101196,2576.7,2576.6,27.753]
[1748011306089,3.88093297,2576.7,2576.6,27.753]
[1748011306277,3.88093297,2576.7,2576.6,44.497]
[1748011307660,3.88071946,2576.9,2576.6,44.497]
[1748011307878,0.7692,2577.4,2576.7,0.03880834]
[1748011308076,3.88002948,2577.3,2576.7,3.88091452]
[1748011308394,0.7692,2577.4,2576.6,48.44699309]
[1748011308395,3.88049805,2577.0,2576.6,48.44699309]
[1748011308582,3.88049805,2577.0,2576.7,1.71762965]
[1748011309313,3.88030018,2577.2,2576.7,5.5984675]
[1748011309454,0.7813,2577.8,2576.7,1.71762965]
[1748011309654,3.88077795,2576.9,2576.6,44.497]
[1748011310007,3.88058432,2577.0,2576.6,44.497]
[1748011310284,3.88086812,2576.8,2576.6,44.497]
[1748011310612,3.88076691,2576.9,2576.6,44.497]
[1748011310613,3.88069032,2576.9,2576.6,44.497]
[1748011311157,3.88054861,2577.0,2576.6,48.44699309]
[1748011311660,3.88072795,2576.9,2576.6,48.44699309]
[1748011311900,3.88034288,2577.1,2576.6,32.87]
[1748011311901,3.88093297,2576.7,2576.6,32.87]
[1748011312091,3.88085932,2576.8,2576.7,11.628]
[1748011312499,3.88029402,2577.2,2576.7,15.50890172]
[1748011312703,3.88040993,2577.1,2576.8,3.94999309]
[1748011313063,3.88049699,2577.0,2576.8,3.94999309]
[1748011313293,3.88049699,2577.0,2576.7,11.628]
[1748011313294,3.88078236,2576.8,2576.7,11.628]
[1748011313487,3.88093297,2576.7,2576.6,16.744]
[1748011313693,3.88093297,2576.7,2576.6,44.5]
[1748011314017,3.88093297,2576.7,2576.6,16.744]
[1748011314217,4.65710619,2576.7,2576.6,32.872]
[1748011314386,3.88093297,2576.7,2576.6,32.872]
[1748011315802,3.88079924,2576.8,2576.6,32.872]
[1748011315803,3.88078298,2576.8,2576.6,32.872]
[1748011316004,3.88071805,2576.9,2576.6,32.872]
[1748011316304,3.88090856,2576.8,2576.6,32.872]
[1748011316505,3.88002948,2577.3,2576.6,32.872]
[1748011316720,3.88093297,2576.7,2576.6,32.872]
[1748011317880,3.88093297,2576.7,2576.6,44.501]
[1748011318843,3.88093297,2576.7,2576.6,16.744]
[1748011318998,3.88093297,2576.7,2576.6,32.873]
[1748011319501,7.02133297,2576.7,2576.6,16.744]
[1748011319720,17.13854516,2576.7,2576.6,16.744]
[1748011320979,3.88213828,2575.9,2575.8,16.746]
[1748011321181,4.68953828,2575.9,2575.8,16.11]
[1748011321419,15.01953828,2575.9,2575.8,16.11]
[1748011321604,15.01953828,2575.9,2574.9,0.4605246]
[1748011321605,3.88349514,2575.0,2574.9,0.4605246]
[1748011321807,3.88349514,2575.0,2574.9,16.5725246]
[1748011322118,3.88349514,2575.0,2574.9,16.112]
[1748011322518,4.63462474,2575.6,2574.9,16.112]
[1748011322814,3.88334433,2575.1,2575.0,11.63]
[1748011323014,3.88349514,2575.0,2574.9,16.112]
[1748011323219,3.88349514,2575.0,2574.9,27.742]
[1748011323418,3.8829182,2575.4,2574.9,16.112]
[1748011323587,3.88349514,2575.0,2574.9,16.112]
[1748011324942,3.8833643,2575.1,2574.0,0.41444654]
[1748011324943,3.88403424,2574.7,2574.5,11.632]
[1748011325089,0.7544,2575.2,2574.6,16.115]
[1748011325287,3.88394764,2574.7,2574.6,16.115]
[1748011325920,4.63634764,2574.7,2574.6,16.115]
[1748011326087,3.88545673,2573.7,2573.6,12.0925246]
[1748011326303,3.88545673,2573.7,2573.6,44.9585246]
[1748011326727,3.88539082,2573.8,2573.6,44.9585246]
[1748011326945,3.88545673,2573.7,2573.6,44.9585246]
[1748011327144,3.88545673,2573.7,2573.6,32.866]
[1748011327707,3.88515492,2573.9,2573.6,32.866]
[1748011327945,3.88466032,2574.3,2573.7,0.038852]
[1748011328121,3.8840985,2574.6,2573.6,40.70153729]
[1748011328328,3.88513242,2574.0,2573.6,36.81599309]
[1748011328642,3.8849079,2574.1,2573.6,36.81599309]
[1748011328849,3.8848969,2574.1,2573.7,1.71762965]
[1748011329013,3.88486392,2574.1,2573.7,1.71762965]
[1748011329345,3.8849563,2574.1,2573.8,11.636]
[1748011329535,3.8840985,2574.6,2573.8,11.636]
[1748011329847,3.88485071,2574.2,2573.8,11.636]
[1748011330212,3.88485071,2574.2,2573.8,15.58599309]
[1748011330414,3.88470352,2574.2,2573.8,15.58599309]
[1748011330642,3.88497398,2574.1,2573.8,15.58599309]
[1748011330941,3.8840985,2574.6,2573.8,11.636]
[1748011331147,3.88507412,2574.0,2573.8,11.636]
[1748011331848,3.88517227,2573.9,2573.6,32.866]
[1748011332035,3.8840985,2574.6,2573.6,32.866]
[1748011332238,3.88545673,2573.7,2573.6,32.866]
[1748011332909,4.66735673,2573.7,2573.6,32.866]
[1748011333111,4.66735673,2573.7,2573.6,16.115]
[1748011333415,12.66735673,2573.7,2573.6,16.115]
[1748011333816,3.88666485,2572.9,2572.8,16.758]
[1748011334029,3.88666485,2572.9,2572.8,32.883]
[1748011334357,3.88666485,2572.9,2572.8,16.758]
[1748011334358,4.74586379,2572.9,2572.8,16.758]
[1748011334523,4.74586379,2572.9,2571.7,8.0]
[1748011334855,4.74586379,2572.9,2571.3,0.4605246]
[1748011334856,3.88817605,2571.9,2571.8,32.886]
[1748011335539,3.88817605,2571.9,2571.8,16.761]
[1748011335740,3.88817605,2571.9,2571.8,32.886]
[1748011337849,0.7989,2572.6,2571.8,32.886]
[1748011338057,3.88817605,2571.9,2571.8,32.886]
[1748011338356,3.88817605,2571.9,2571.8,16.761]
[1748011338856,4.69817605,2571.9,2571.8,16.761]
[1748011339060,4.69817605,2571.9,2571.8,32.891]
[1748011339935,12.69817605,2571.9,2571.8,32.891]
[1748011340342,13.76345007,2571.9,2571.8,32.891]
[1748011340538,12.69817605,2571.9,2571.8,32.891]
[1748011340737,0.8153,2572.3,2571.8,32.891]
[1748011340937,3.88817605,2571.9,2571.8,32.891]
[1748011341142,3.88804099,2572.0,2571.8,32.891]
[1748011341341,3.88817605,2571.9,2571.8,32.891]
[1748011341529,3.88817605,2571.9,2571.8,44.537]
[1748011341725,3.88817605,2571.9,2571.8,32.895]
[1748011342139,0.8153,2572.6,2571.8,36.84499309]
[1748011342355,3.88738019,2572.5,2571.8,36.84499309]
[1748011342556,3.88750932,2572.4,2571.9,3.88805803]
[1748011342851,0.8159,2573.0,2571.8,20.71099309]
[1748011343043,3.88759587,2572.3,2572.0,27.784]
[1748011343722,3.88687302,2572.8,2572.0,27.784]
[1748011343922,0.8159,2573.0,2572.0,27.784]
[1748011344354,3.88753408,2572.4,2572.0,27.784]
[1748011344852,3.8869947,2572.7,2572.0,31.67196731]
[1748011345017,3.88728048,2572.5,2572.1,3.55601304]
[1748011345224,3.88749668,2572.4,2572.1,3.55601304]
[1748011345416,0.8159,2573.0,2572.1,3.55601304]
[1748011345615,0.8159,2573.0,2571.8,16.761]
[1748011345843,3.88770894,2572.3,2572.2,16.137]
[1748011346164,3.88678733,2572.9,2572.2,16.137]
[1748011346315,3.88707235,2572.7,2572.2,16.137]
[1748011346522,3.88711809,2572.6,2572.2,18.13949521]
[1748011346728,3.88730191,2572.5,2572.2,18.13949521]
[1748011347329,3.88757143,2572.3,2572.2,16.137]
[1748011347529,3.88809627,2572.0,2571.8,16.761]
[1748011347764,3.88666485,2572.9,2571.8,16.761]
[1748011348061,0.8159,2573.0,2571.8,16.761]
[1748011348062,3.88802488,2572.0,2571.9,16.137]
[1748011348556,0.7596,2572.3,2571.9,16.137]
[1748011348557,3.88771853,2572.3,2571.9,16.137]
[1748011348715,3.88772257,2572.2,2571.9,19.4268]
[1748011348918,4.70976485,2572.9,2571.9,19.4268]
[1748011349129,3.88681592,2572.8,2571.9,16.137]
[1748011349325,3.88796742,2572.1,2571.9,16.137]
[1748011349552,3.88799828,2572.1,2571.9,16.137]
[1748011349769,3.88802488,2572.0,2571.9,16.137]
[1748011349930,3.88802488,2572.0,2571.9,27.786]
[1748011350332,3.88718477,2572.6,2572.1,3.88785066]
[1748011350547,3.88727882,2572.5,2571.9,31.73599309]
[1748011350866,3.88712131,2572.6,2572.1,3.88778271]
[1748011351067,3.88727453,2572.5,2572.0,4.43795991]
[1748011351268,3.88727072,2572.5,2572.1,3.88777281]
[1748011351430,3.88653421,2573.0,2572.0,10.08492839]
[1748011351631,3.88770018,2572.3,2572.0,8.36729874]
[1748011351830,3.88660602,2573.0,2572.1,3.88786833]
[1748011352030,3.88704921,2572.7,2572.0,12.25528689]
[1748011352268,3.88636275,2573.1,2572.1,0.55]
[1748011352566,0.7778,2573.2,2572.2,1.2805284]
[1748011352567,3.88717069,2572.6,2572.2,1.2805284]
[1748011352867,0.7778,2573.2,2572.2,1.2805284]
[1748011352868,0.7778,2573.2,2572.2,5.16822568]
[1748011353078,3.88704578,2572.7,2572.2,1.2805284]
[1748011353235,3.88720285,2572.6,2572.3,27.772]
[1748011353431,3.88675351,2572.9,2572.3,27.772]
[1748011353663,3.88675351,2572.9,2572.4,6.79258617]
[1748011353860,3.88682268,2572.8,2572.4,2.90525284]
[1748011354249,3.8867264,2572.9,2572.5,0.36729874]
[1748011354451,3.8867264,2572.9,2572.5,1.84914024]
[1748011354666,0.7778,2573.2,2572.6,3.88699794]
[1748011354667,3.88650754,2573.1,2572.6,3.88699794]
[1748011354849,3.88644648,2573.1,2572.6,3.88708726]
[1748011355296,4.65469852,2573.5,2572.5,9.84914024]
[1748011355297,3.88590969,2573.4,2572.5,9.84914024]
[1748011355496,3.88667459,2572.9,2572.5,0.36729874]
[1748011355652,3.88689483,2572.8,2572.7,0.36729874]
[1748011355836,3.88689483,2572.8,2572.7,17.14229874]
[1748011356877,3.88670503,2572.9,2572.7,17.14229874]
[1748011357177,3.88681592,2572.8,2572.7,17.14229874]
[1748011357375,3.88674551,2572.9,2572.7,33.26429874]
[1748011357670,3.88681592,2572.8,2572.7,33.26429874]
[1748011357871,3.88612721,2573.3,2572.7,33.26429874]
[1748011358073,0.46549272,2573.3,2572.7,33.26429874]
[1748011358236,3.88673764,2572.9,2572.7,33.26429874]
[1748011360174,3.88651379,2573.0,2572.9,16.48929874]
[1748011360380,3.88651379,2573.0,2572.9,0.36729874]
[1748011360539,5.13314645,2573.0,2572.9,16.48829874]
[1748011361149,3.88651379,2573.0,2572.9,16.121]
[1748011361943,3.88643948,2573.1,2572.9,27.769]
[1748011362138,3.88651379,2573.0,2572.9,27.769]
[1748011362472,0.8239,2573.6,2573.0,0.37055867]
[1748011362674,3.88614654,2573.3,2573.0,0.37055867]
[1748011362835,0.7623,2574.0,2573.3,3.8859575]
[1748011363041,10.27,2574.1,2573.4,16.121]
[1748011363242,3.88562385,2573.6,2573.5,11.648]
[1748011363471,3.88636275,2573.1,2573.0,8.37055867]
[1748011363681,3.88636275,2573.1,2573.0,8.0]
[1748011363841,3.88613748,2573.3,2573.1,8.0]
[1748011364285,3.88621172,2573.2,2573.1,8.0]
[1748011364671,3.88610712,2573.3,2573.2,0.37020078]
[1748011365645,4.66331267,2573.3,2573.2,16.49020078]
[1748011365842,4.66331267,2573.3,2573.2,0.37020078]
[1748011366042,4.66331267,2573.3,2573.2,16.49020078]
[1748011366243,5.46721267,2573.3,2573.2,16.12]
[1748011368678,3.88681592,2572.8,2572.7,16.775]
[1748011368852,3.88681592,2572.8,2572.7,32.894]
[1748011371275,3.88681592,2572.8,2572.7,33.26485427]
[1748011372487,4.66416669,2572.8,2572.7,33.26485427]
[1748011372687,4.66416669,2572.8,2572.7,32.894]
[1748011372888,3.88681592,2572.8,2572.7,32.894]
[1748011374286,4.67831592,2572.8,2572.7,32.894]
[1748011375151,4.67831592,2572.8,2572.7,16.775]
[1748011375358,4.67831592,2572.8,2572.7,32.896]
[1748011377563,4.67831592,2572.8,2572.7,16.775]
[1748011377769,7.95961669,2572.8,2572.7,16.775]
[1748011379192,7.95961669,2572.8,2572.7,32.897]
[1748011379615,18.28961669,2572.8,2572.7,32.897]
[1748011379893,3.88817605,2571.9,2571.8,16.775]
[1748011380193,3.88817605,2571.9,2571.8,32.897]
[1748011380567,0.8241,2572.4,2571.8,32.897]
[1748011380568,0.8171,2572.7,2571.8,36.84699309]
[1748011380787,3.88812881,2572.0,2571.8,36.84699309]
[1748011380966,3.88817605,2571.9,2571.8,36.84699309]
[1748011381170,3.88817605,2571.9,2571.8,32.897]
[1748011381580,3.88805967,2572.0,2571.8,32.897]
[1748011381776,3.88775032,2572.2,2571.8,32.897]
[1748011381976,0.8171,2572.7,2571.8,32.897]
[1748011382177,3.88781755,2572.2,2571.9,3.94999309]
[1748011382356,3.10720555,2573.3,2571.9,3.94999309]
[1748011382562,3.88749989,2572.4,2571.9,7.83810804]
[1748011382758,3.88666485,2572.9,2572.0,8.0]
[1748011382962,3.88748787,2572.4,2572.1,11.65]
[1748011383186,3.88748787,2572.4,2572.2,1.71762965]
[1748011383409,3.88695228,2572.8,2572.3,16.11]
[1748011383562,0.7787,2573.8,2572.4,8.0]
[1748011383903,0.7787,2573.8,2572.7,0.55]
[1748011384230,0.7787,2573.8,2572.8,33.741]
[1748011384231,3.88653097,2573.0,2572.8,33.741]
[1748011384359,3.88640682,2573.1,2572.8,17.631]
[1748011384560,3.88562973,2573.6,2572.9,27.76]
[1748011384859,3.88650175,2573.1,2572.9,27.76]
[1748011385091,3.88650175,2573.1,2572.8,17.631]
[1748011385270,0.7787,2573.8,2572.9,27.76]
[1748011385471,3.88643216,2573.1,2572.9,27.76]
[1748011385883,3.88666485,2572.9,2572.8,16.776]
[1748011386081,3.88657625,2573.0,2572.8,16.776]
[1748011386400,3.88639649,2573.1,2572.8,44.536]
[1748011386611,3.88597204,2573.4,2572.8,52.37278527]
[1748011386819,3.88651679,2573.0,2572.8,48.48599309]
[1748011386975,3.88651679,2573.0,2572.8,44.536]
[1748011386976,3.88666485,2572.9,2572.8,44.536]
[1748011387175,3.88650657,2573.1,2572.8,44.536]
[1748011387374,3.88650657,2573.1,2572.8,16.776]
[1748011387625,3.88651379,2573.0,2572.9,27.759]
[1748011388122,3.88636463,2573.1,2572.9,27.759]
[1748011388123,3.8864327,2573.1,2572.9,27.759]
[1748011388327,3.88652076,2573.0,2572.8,16.776]
[1748011388477,3.88666485,2572.9,2572.8,16.776]
[1748011388678,4.66398527,2572.9,2572.8,32.885]
[1748011389205,3.88666485,2572.9,2572.8,32.885]
[1748011390774,3.88666485,2572.9,2572.8,44.533]
[1748011391192,3.88666485,2572.9,2572.8,16.776]
[1748011391399,3.88666485,2572.9,2572.8,32.884]
[1748011392004,3.88666485,2572.9,2572.8,16.776]
[1748011392204,4.66398527,2572.9,2572.8,32.884]
[1748011393131,3.88605746,2573.4,2572.8,32.884]
[1748011393339,3.88658507,2573.0,2572.8,32.884]
[1748011393494,3.88666299,2573.0,2572.8,32.884]
[1748011393933,3.88666485,2572.9,2572.8,32.884]
[1748011394437,3.88666485,2572.9,2572.8,44.532]
[1748011394627,3.88658085,2573.0,2572.8,44.532]
[1748011394798,3.88666485,2572.9,2572.8,44.532]
[1748011395539,3.88657784,2573.0,2572.8,44.532]
[1748011395697,3.88655315,2573.0,2572.8,44.532]
[1748011395897,3.88643546,2573.1,2572.8,44.532]
[1748011396096,3.8862552,2573.2,2572.8,44.532]
[1748011396307,0.7548,2573.5,2572.8,44.532]
[1748011396541,3.88651379,2573.0,2572.9,27.755]
[1748011396846,3.8862956,2573.2,2572.9,27.755]
[1748011397025,3.88642365,2573.1,2572.9,27.755]
[1748011397227,0.8238,2573.8,2572.9,27.755]
[1748011397428,0.8121,2573.2,2572.8,16.776]
[1748011397626,3.88636275,2573.1,2573.0,16.107]
[1748011399441,4.39202097,2573.1,2573.0,16.107]
[1748011400337,3.88666485,2572.9,2572.8,28.424]
[1748011400562,3.88666485,2572.9,2572.8,44.531]
[1748011402184,3.88642557,2573.1,2572.8,44.531]
[1748011402389,0.8121,2573.5,2572.8,52.36771787]
[1748011402566,3.88603425,2573.4,2572.9,3.92553022]
[1748011402733,3.88603304,2573.4,2572.9,3.88661369]
[1748011403048,0.7875,2574.1,2573.0,0.03885899]
[1748011403250,1.94659609,2574.7,2573.0,0.03885899]
[1748011403251,3.88553581,2573.7,2573.2,4.43614496]
[1748011403448,3.88561761,2573.6,2573.3,27.754]
[1748011403675,3.88582062,2573.5,2573.4,27.754]
[1748011404163,3.88569124,2573.6,2573.4,27.754]
[1748011404368,3.88575869,2573.5,2573.4,27.754]
[1748011405284,0.7651,2574.0,2573.2,3.8861382]
[1748011405492,3.88524402,2573.9,2573.4,11.647]
[1748011405883,3.88530577,2573.8,2573.4,11.647]
[1748011406561,0.787,2574.3,2573.4,11.647]
[1748011406762,0.7967,2574.5,2573.5,3.16380578]
[1748011406967,3.88503654,2574.0,2573.5,7.04948022]
[1748011407504,3.8848651,2574.1,2573.6,4.43556015]
[1748011407688,3.88502989,2574.0,2573.6,0.55]
[1748011407884,0.7967,2574.5,2573.6,2.66520314]
[1748011408066,8.0,2574.8,2573.9,3.88514192]
[1748011408067,3.88457704,2574.3,2573.9,3.88514192]
[1748011408267,3.88410865,2574.6,2574.1,3.88473668]
[1748011408579,3.88435659,2574.5,2574.0,48.4039891]
[1748011408785,0.7778,2575.1,2574.2,3.88456725]
[1748011408983,3.88417191,2574.6,2574.1,4.43479691]
[1748011409294,3.88425975,2574.5,2574.1,7.98721651]
[1748011409594,3.88349514,2575.0,2574.1,7.98725635]
[1748011409595,3.88356835,2575.0,2574.1,7.98725635]
[1748011409906,0.32418805,2575.1,2574.5,3.88417277]
[1748011410055,3.88358202,2575.0,2574.6,27.749]
[1748011410253,0.6606179,2575.5,2574.1,3.5524196]
[1748011410495,0.6606179,2575.5,2574.4,3.88438249]
[1748011410496,3.88374846,2574.9,2574.4,3.88438249]
[1748011410698,3.8832782,2575.2,2574.6,3.88402758]
[1748011410899,0.6606179,2575.5,2574.7,19.98783673]
[1748011411196,0.6606179,2575.5,2574.8,11.645]
[1748011411401,3.88364596,2574.9,2574.8,11.645]
[1748011412505,3.88338922,2575.1,2574.8,11.645]
[1748011412800,3.88344577,2575.1,2574.8,11.645]
[1748011412960,3.88327483,2575.2,2574.8,11.645]
[1748011413164,0.777,2575.6,2574.8,11.645]
[1748011413506,3.88319495,2575.2,2574.9,0.55]
[1748011413806,3.88317311,2575.3,2575.0,16.767]
[1748011414105,0.7596,2575.9,2575.1,0.55]
[1748011414289,3.88269305,2575.6,2575.2,17.8177]
[1748011414495,3.88261386,2575.6,2575.3,0.55]
[1748011414708,0.7596,2576.2,2575.4,11.643]
[1748011415009,3.88236488,2575.8,2575.5,0.55]
[1748011415175,0.7596,2576.2,2575.5,1.26762019]
[1748011415574,3.88242155,2575.8,2575.5,1.26762019]
[1748011415883,3.88259046,2575.6,2575.5,0.71762019]
[1748011416089,3.88246958,2575.7,2575.4,11.643]
[1748011416408,4.64130469,2576.2,2575.4,11.643]
[1748011416409,4.64131292,2576.2,2575.5,0.55]
[1748011416607,3.88259046,2575.6,2575.5,0.55]
[1748011416764,3.88183688,2576.1,2575.4,11.641]
[1748011416960,3.88304275,2575.3,2575.2,16.086]
[1748011417165,3.88304275,2575.3,2575.2,27.727]
[1748011418100,3.88334433,2575.1,2575.0,16.767]
[1748011418411,3.88334433,2575.1,2575.0,44.488]
[1748011418615,3.88334433,2575.1,2575.0,16.767]
[1748011418795,3.88334433,2575.1,2575.0,44.488]
[1748011418979,3.88327244,2575.2,2575.0,44.488]
[1748011419297,3.88325133,2575.2,2575.0,44.488]
[1748011419504,3.88301535,2575.4,2575.0,44.488]
[1748011419703,3.88296075,2575.4,2575.0,44.488]
[1748011420100,0.7629,2575.7,2575.0,44.488]
[1748011420101,0.7619,2575.3,2575.0,16.767]
[1748011420262,3.88319353,2575.2,2575.1,16.08]
[1748011422199,3.88334433,2575.1,2575.0,16.767]
[1748011422403,3.88334433,2575.1,2575.0,32.847]
[1748011422697,3.88376777,2574.9,2574.5,0.55]
[1748011422914,3.88380893,2574.8,2574.6,32.84]
[1748011423329,3.88373062,2574.9,2574.6,32.84]
[1748011423479,3.88351531,2575.0,2574.6,32.84]
[1748011423826,3.88351531,2575.0,2574.7,12.189]
[1748011424133,3.88365549,2574.9,2574.7,12.189]
[1748011425128,3.88351598,2575.0,2574.7,12.189]
[1748011425423,4.64500675,2575.3,2574.7,12.189]
[1748011425624,4.64500675,2575.3,2574.6,40.84]
[1748011425625,3.88387431,2574.8,2574.6,40.84]
[1748011425776,3.88394764,2574.7,2574.6,16.76]
[1748011425975,3.88394764,2574.7,2574.6,32.839]
[1748011426788,3.88387431,2574.8,2574.6,32.839]
[1748011427003,3.88370481,2574.9,2574.6,32.839]
[1748011427207,3.88394764,2574.7,2574.6,32.839]
[1748011427714,3.88394764,2574.7,2574.6,44.477]
[1748011428048,3.88387336,2574.8,2574.6,44.477]
[1748011428821,0.7619,2575.3,2574.7,0.55]
[1748011429018,3.88333072,2575.2,2574.9,4.23059815]
[1748011429219,3.88274121,2575.5,2574.6,52.65759124]
[1748011429424,3.88388953,2574.8,2574.7,27.717]
[1748011429637,3.8837008,2574.9,2574.7,27.717]
[1748011429816,3.88357433,2575.0,2574.7,0.55]
[1748011430014,3.88379679,2574.8,2574.7,0.55]
[1748011430318,3.88379679,2574.8,2574.7,28.267]
[1748011430514,3.88394764,2574.7,2574.6,16.76]
[1748011430734,3.88373646,2574.9,2574.6,44.477]
[1748011430922,3.88350043,2575.0,2574.7,4.78059815]
[1748011431310,3.88367176,2574.9,2574.7,4.78059815]
[1748011431843,3.88379679,2574.8,2574.7,4.78059815]
[1748011432023,3.88394764,2574.7,2574.6,16.76]
[1748011432224,3.88394764,2574.7,2574.6,44.477]
[1748011432436,3.88373843,2574.9,2574.6,44.477]
[1748011432437,3.88370996,2574.9,2574.6,44.477]
[1748011432641,3.88358229,2575.0,2574.8,4.23059815]
[1748011433847,3.88364596,2574.9,2574.8,4.23059815]
[1748011434044,3.88394764,2574.7,2574.6,45.027]
[1748011434263,3.88380121,2574.8,2574.6,45.027]
[1748011434861,0.7773,2575.3,2574.7,0.55]
[1748011435014,3.8835675,2575.0,2574.7,0.55]
[1748011435218,3.8835902,2575.0,2574.7,4.78059815]
[1748011435415,3.88366245,2574.9,2574.7,4.78059815]
[1748011435614,3.8835831,2575.0,2574.7,4.78059815]
[1748011435834,3.88340784,2575.1,2574.7,4.78059815]
[1748011436027,3.88350085,2575.0,2574.7,4.78059815]
[1748011437258,0.758,2575.6,2574.7,8.73059124]
[1748011437558,10.27,2575.8,2575.5,4.23059815]
[1748011437559,3.88238407,2575.8,2575.5,4.23059815]
[1748011437861,3.88228899,2575.8,2575.6,44.476]
[1748011438024,3.88243972,2575.7,2575.6,44.476]
[1748011438425,3.88217458,2575.9,2575.6,44.476]
[1748011438426,3.88230687,2575.8,2575.6,44.476]
[1748011439357,3.8822987,2575.8,2575.6,44.476]
[1748011440058,3.88203487,2576.0,2575.6,44.476]
[1748011440368,3.88243972,2575.7,2575.6,44.476]
[1748011440661,0.758,2576.1,2575.6,44.476]
[1748011441050,3.88223266,2575.9,2575.6,44.476]
[1748011441367,3.88243972,2575.7,2575.6,16.759]
[1748011441562,3.88243972,2575.7,2575.6,32.835]
[1748011443032,3.88243972,2575.7,2575.6,44.471]
[1748011443864,4.69483972,2575.7,2575.6,16.759]
[1748011444159,4.69483972,2575.7,2575.6,32.817]
[1748011444361,5.55255367,2575.7,2575.6,32.817]
[1748011444946,5.55255367,2575.7,2575.6,16.759]
[1748011445160,5.55255367,2575.7,2575.6,32.816]
[1748011445928,13.55255367,2575.7,2575.6,32.816]
[1748011449475,13.55255367,2575.7,2575.6,32.817]
[1748011450358,13.55255367,2575.7,2575.6,16.759]
[1748011450572,13.55255367,2575.7,2575.6,32.817]
[1748011454075,5.55255367,2575.7,2575.6,32.817]
[1748011455900,5.55255367,2575.7,2575.6,16.759]
[1748011456044,5.55255367,2575.7,2575.6,32.818]
[1748011456942,3.88243972,2575.7,2575.6,32.818]
[1748011457584,0.7637,2576.2,2575.6,32.818]
[1748011457884,10.27,2576.3,2575.7,11.637]
[1748011458047,3.88221755,2575.9,2575.7,11.637]
[1748011458248,3.88221755,2575.9,2575.8,3.94999309]
[1748011461448,3.88228899,2575.8,2575.6,16.759]
[1748011461747,3.88243972,2575.7,2575.6,16.759]
[1748011461975,3.88243972,2575.7,2575.6,44.452]
[1748011465355,3.88243972,2575.7,2575.6,44.451]
[1748011468256,3.88243972,2575.7,2575.6,44.45]
[1748011468594,4.65891259,2575.7,2575.6,32.815]
[1748011468780,5.41311259,2575.7,2575.6,32.815]
[1748011470816,3.88243972,2575.7,2575.6,32.815]
[1748011472161,10.27,2576.1,2575.6,32.815]
[1748011472365,3.88237542,2575.8,2575.7,11.636]
[1748011472672,3.88237542,2575.8,2575.6,16.759]
[1748011472673,3.88243972,2575.7,2575.6,16.759]
[1748011472887,3.88243972,2575.7,2575.6,44.452]
[1748011473701,3.88227269,2575.9,2575.6,48.40199309]
[1748011473901,3.88230613,2575.8,2575.6,48.40199309]
[1748011474060,3.88243972,2575.7,2575.6,44.452]
[1748011474261,3.8823586,2575.8,2575.6,44.452]
[1748011475206,3.88237629,2575.8,2575.6,44.452]
[1748011475665,0.7931,2576.5,2575.7,0.58882231]
[1748011475863,3.88206359,2576.0,2575.7,0.55]
[1748011476065,3.88138487,2576.4,2575.7,4.49999309]
[1748011476375,3.88228899,2575.8,2575.7,4.49999309]
[1748011476672,3.88228899,2575.8,2575.7,0.55]
[1748011476865,3.88228899,2575.8,2575.7,28.215]
[1748011477068,3.8816282,2576.3,2575.7,28.215]
[1748011477708,3.88207826,2576.0,2575.7,28.215]
[1748011477923,3.88224494,2575.9,2575.7,28.215]
[1748011478401,3.88206031,2576.0,2575.8,27.664]
[1748011478607,3.88213828,2575.9,2575.8,27.664]
[1748011479609,3.88243972,2575.7,2575.6,16.759]
[1748011479810,4.63703972,2575.7,2575.6,32.788]
[1748011481471,10.27,2576.1,2575.6,32.788]
[1748011481768,3.88232816,2575.8,2575.6,32.788]
[1748011481987,3.88243972,2575.7,2575.6,32.788]
[1748011482393,3.88236029,2575.8,2575.6,32.788]
[1748011482997,3.88243972,2575.7,2575.6,32.788]
[1748011483175,3.88236029,2575.8,2575.6,32.788]
[1748011483580,14.15189836,2576.1,2575.6,36.73799309]
[1748011483765,3.882146,2575.9,2575.6,36.73799309]
[1748011484164,3.88243972,2575.7,2575.6,32.788]
[1748011485792,3.88237232,2575.8,2575.6,32.788]
[1748011485992,3.88243972,2575.7,2575.6,32.788]
[1748011486202,3.88243972,2575.7,2575.6,44.422]
[1748011487112,3.8822193,2575.9,2575.6,44.422]
[1748011487522,3.88185433,2576.1,2575.7,0.55]
[1748011487697,3.88176427,2576.2,2575.7,0.55]
[1748011487893,3.88176427,2576.2,2575.7,4.43243919]
[1748011488128,3.88186357,2576.1,2575.8,0.0388185]
[1748011488406,3.8820283,2576.0,2575.8,1.71762965]
[1748011488607,3.8820283,2576.0,2575.7,0.55]
[1748011488823,3.88191589,2576.1,2575.7,0.55]
[1748011489023,0.8006,2576.5,2575.9,0.55]
[1748011489208,14.15082352,2576.8,2576.0,11.634]
[1748011489419,3.88160294,2576.3,2576.1,16.028]
[1748011489724,3.8816862,2576.2,2576.1,18.7942]